Cogmind - Beta 10.1 @@@ ROGUE MODE // 2020.09.25 @ 17:54:26 Player: Omewes Result: Destroyed by G-47 Trooper with Particle Gun Performance ------------- Evolutions (1) 500 Regions Visited (4) 800 Robots Destroyed (79) 395 Value Destroyed (2044) 2044 Prototype IDs (5) 100 Alien Tech Used (0) 0 Bonus (543) 543 TOTAL SCORE: 4382 Bonus ------- High Alert Combat Kills 343 Entered Garrisons 200 Cogmind --------- Core Integrity 0/400 Matter 221/300 Energy 276/280 System Corruption 4% Temperature Cool (83) Movement Rolling (160) Ox8 Location -9/Garrison Parts ------- > --- POWER (1) -------- Heavy Ion Engine > --- PROPULSION (2) --- Wheel > --- UTILITY (4) ------ Heat Sink Large Storage Unit Large Storage Unit High-capacity Storage Unit > --- WEAPON (2) ------- Advanced Beam Cannon Advanced Beam Cannon > --- INVENTORY (24) --- Heavy Ion Engine Heavy Ion Engine Heavy Ion Engine Wheel Heat Sink Heat Sink Medium Storage Unit Light Armor Plating Improved EM Shotgun Improved EM Shotgun Advanced Beam Cannon Advanced Beam Cannon Advanced Beam Cannon Advanced Beam Cannon Heavy Assault Rifle Improved Grenade Launcher Improved Datajack Heavy Mace Peak State ------------ > --- POWER ------------ Heavy Ion Engine > --- PROPULSION ------- Wheel Wheel > --- UTILITY ---------- Heat Sink Large Storage Unit Large Storage Unit High-capacity Storage Unit > --- WEAPON ----------- Improved EM Shotgun Advanced Beam Cannon > --- INVENTORY -------- Improved Ion Engine Heavy Ion Engine Heavy Ion Engine Wheel Wheel Compact Wheel Compact Wheel Medium Storage Unit Light Armor Plating Light Armor Plating Light Armor Plating Light Armor Plating Improved EM Shotgun Beam Rifle Beam Rifle Advanced Beam Cannon Advanced Beam Cannon Advanced Beam Cannon Advanced Beam Cannon Advanced Beam Cannon Heavy Assault Rifle Improved Grenade Launcher Improved Datajack Heavy Mace [Rating: 20] Favorites ----------- Power Heavy Ion Engine Engine Heavy Ion Engine Propulsion Wheel Wheel Wheel Utility Large Storage Unit Device Heat Sink Storage Large Storage Unit Protection Light Armor Plating Weapon Advanced Beam Cannon Energy Gun EM Pulse Gun Energy Cannon Advanced Beam Cannon Ballistic Gun Assault Rifle Launcher Mini Grenade Launcher Impact Weapon Heavy Mace Build | -11 -10 -9 -9 -9 ------- Run | Scr Mat Mat Sto Gar Slots Evolved 2 | . . 2 . . Power . | . . . . . Propulsion . | . . . . . Utility 2 | . . 2 . . Weapon . | . . . . . Parts Attached 55 | 6 2 26 16 5 Power 6 | 1 . 3 2 . Engine 6 | 1 . 3 2 . Core . | . . . . . Reactor . | . . . . . Propulsion 13 | 2 . 4 5 2 Treads . | . . . . . Leg . | . . . . . Wheel 13 | 2 . 4 5 2 Hover . | . . . . . Flight . | . . . . . Utility 9 | 1 1 6 1 . Device 2 | . 1 . 1 . Storage 6 | 1 . 5 . . Processor . | . . . . . Hackware . | . . . . . Protection 1 | . . 1 . . Artifact . | . . . . . Weapon 27 | 2 1 13 8 3 Energy Gun 4 | 1 . 2 1 . Energy Cannon 12 | . 1 4 5 2 Ballistic Gun 2 | 1 . 1 . . Ballistic Cannon . | . . . . . Launcher 7 | . . 5 1 1 Special Weapon . | . . . . . Impact Weapon 2 | . . 1 1 . Slashing Weapon . | . . . . . Piercing Weapon . | . . . . . Special Melee Weapon . | . . . . . Unidentified Prototypes 2 | . . . 2 . Parts Lost 13 | . . 3 5 5 Power 1 | . . 1 . . Propulsion 6 | . . . 3 3 Utility 1 | . . 1 . . Weapon 5 | . . 1 2 2 Highest Loss Streak 4 | . . 3 2 4 Average Slot Usage (%) 96 | . 95 90 99 98 Engine 11 | . 14 11 11 11 Wheel 22 | . 28 22 22 20 Device 10 | . 10 11 10 11 Storage 28 | . 14 22 33 33 Energy Gun 1 | . 14 2 . . Energy Cannon 19 | . 11 16 21 21 Naked Turns . | . . . . . Heaviest Build 83 | 11 13 80 83 81 Greatest Support 32 | 32 32 32 20 20 Greatest Overweight (x) 8 | . . 3 8 4 Average Overweight (x) 2 | . . 1 3 4 Largest Inventory Capacity 24 | 6 6 24 24 24 Average Capacity 19 | 5 6 13 24 24 Most Carried 24 | 2 4 18 24 22 Average Carried 16 | 1 3 9 21 20 Final Capacity 24 | 6 6 24 24 24 Final Carried 22 | 2 4 18 22 18 Class Distribution -------------------- 75% | Hauler-Mutant 24% | Mutant Dominant Class ---------------- Mutant | -10/Materials Mutant | -9/Materials Hauler-Mutant | -9/Storage Hauler-Mutant | -9/Garrison Resources | -11 -10 -9 -9 -9 ----------- Run | Scr Mat Mat Sto Gar Matter Collected 870 | 266 . 379 208 17 Remotely . | . . . . . Salvage Created 2737 | 87 . 817 1408 425 Parts 166 | 3 . 59 78 26 Haulers Intercepted 6 | . . 1 5 . Recyclers Shooed . | . . . . . Parts Field Recycled . | . . . . . Retrieved Matter . | . . . . . Parts Self-Destructed . | . . . . . Prevented . | . . . . . Kills | -11 -10 -9 -9 -9 ------- Run | Scr Mat Mat Sto Gar Combat Hostiles Destroyed 58 | . . 23 23 12 Guns 1 | . . 1 . . Cannons 36 | . . 6 20 10 AOE 21 | . . 16 3 2 Classes Destroyed 11 | 1 . 6 3 1 Worker 2 | . . . 2 . Tunneler 3 | . . 3 . . Hauler 6 | . . 1 5 . Recycler 4 | 1 . 2 1 . Operator 3 | . . . 3 . Watcher 3 | . . 1 2 . Swarmer 16 | . . 13 3 . Grunt 23 | . . 4 10 9 Brawler 1 | . . . 1 . Duelist 1 | . . . . 1 Sentry 17 | . . 6 9 2 Best Kill Streak 9 | 1 . 7 9 6 Combat Bots Only 6 | . . 6 4 6 Max Kills in Single Turn 3 | 1 . 3 1 1 Gunslinging . | . . . . . Exploded 3 | . . 3 1 1 Melee . | . . . . . Uniques/NPCs Destroyed . | . . . . . Combat | -11 -10 -9 -9 -9 -------- Run | Scr Mat Mat Sto Gar Damage Taken 1917 | . 26 649 684 558 Core 422 | . 12 115 152 143 Absorbed by Shields . | . . . . . Core Remaining (%) 97 | 100 95 . . . Volleys Fired 156 | 2 . 40 84 30 Largest 2 | 2 . 2 2 2 Hottest 136 | 60 . 136 136 136 Shots Fired 287 | 4 . 70 160 53 Gun 26 | 4 . 20 2 . Cannon 244 | . . 40 155 49 Launcher 17 | . . 10 3 4 Special . | . . . . . Kinetic 7 | 2 . 5 . . Thermal 244 | . . 40 155 49 Explosive 17 | . . 10 3 4 Electromagnetic 19 | 2 . 15 2 . Robot Hit Streak 14 | 1 . 12 11 14 Robot Miss Streak 6 | 2 . 6 4 3 Penetration Max . | . . . . . Secondary Targets . | . . . . . Shots Hit Robots 166 | 1 . 32 99 34 Core Hits 92 | 1 . 36 38 17 Critical Hits 15 | . . 1 11 3 Critical Kills 6 | . . 1 4 1 Critical Parts Destroyed 9 | . . . 7 2 Melee Attacks 5 | . . 2 3 . Impact 5 | . . 2 3 . Slashing . | . . . . . Piercing . | . . . . . Sneak Attacks . | . . . . . Combat Hostiles . | . . . . . Follow-up Attacks . | . . . . . Damage Inflicted 4957 | 15 5 1832 2256 849 Guns 174 | 15 . 148 11 . Cannons 2938 | . . 395 1926 617 Explosions 1840 | . . 1289 319 232 Melee . | . . . . . Ramming 5 | . 5 . . . Kinetic 41 | . . 41 . . Thermal 2967 | . . 424 1926 617 Explosive 1811 | . . 1260 319 232 Electromagnetic 133 | 15 . 107 11 . Impact . | . . . . . Slashing . | . . . . . Piercing . | . . . . . Highest Corruption 4 | . . 4 4 4 Average Corruption 3 | . . 3 4 4 Corruption Purged . | . . . . . Effects 35 | . . 4 23 8 Message Errors 6 | . . 2 4 . Matter Fused 4 | . . . 3 1 Heat Flow Errors 2 | . . . 2 . Energy Discharges 6 | . . 2 3 1 Parts Rejected 1 | . . . 1 . Data Loss (minor) 4 | . . . 4 . Targeting Errors 10 | . . . 6 4 Weapon Failures 2 | . . . . 2 Overload Shots . | . . . . . Overflow Damage 123 | . . 39 84 . Projectiles 13 | . . . 13 . Explosions 110 | . . 39 71 . Melee . | . . . . . Knockbacks . | . . . . . Impact . | . . . . . Kinetic . | . . . . . Secondary . | . . . . . Self-Inflicted Damage 20 | . 2 18 . . Shots 1 | . . 1 . . Rammed 1 | . 1 . . . Targets Rammed 1 | . 1 . . . Kicked . | . . . . . Crushed . | . . . . . Highest Temperature 369 | . . 150 369 345 Average Temperature 88 | . . 51 84 125 Received Heat Transfer 765 | . 12 201 270 282 Effects 5 | . . . 3 2 Energy Bleed 5 | . . . 3 2 Siege Activations . | . . . . . Robots Corrupted . | . . . . . Combat Hostiles . | . . . . . Parts Fried 1 | . . 1 . . Impact Corruptions . | . . . . . Robots Melted . | . . . . . Combat Hostiles . | . . . . . Parts Melted 11 | . . 1 8 2 Heat Transferred 5378 | . . 790 3478 1110 Parts Sabotaged . | . . . . . Parts Stolen . | . . . . . Parts Stripped . | . . . . . Power Chain Reactions 1 | . . 1 . . Missiles Intercepted . | . . . . . Alert | -11 -10 -9 -9 -9 ------- Run | Scr Mat Mat Sto Gar Peak Influence 819 | 5 3 558 735 819 Initial 479 | . 3 . 235 479 Average 444 | 1 3 326 551 640 Maximum Alert Level 3 | . . 2 3 3 Low Security (%) 14 | 100 100 20 . . Level 1 16 | . . 40 8 . Level 2 65 | . . 39 88 79 Level 3 3 | . . . 2 20 Level 4 . | . . . . . Level 5 . | . . . . . High Security . | . . . . . Max Security . | . . . . . Squads Dispatched 4 | . 1 2 1 . Investigation 1 | . 1 . . . Extermination . | . . . . . Reinforcement 3 | . . 2 1 . Assault . | . . . . . Garrison . | . . . . . Intercept . | . . . . . Construction Impeded 1 | . . 1 . . Haulers Reinforced . | . . . . . Stealth | -11 -10 -9 -9 -9 --------- Run | Scr Mat Mat Sto Gar Distress Signals 6 | . . 3 3 . Communications Jammed . | . . . . . Distress Signals . | . . . . . Times Spotted 85 | . 3 34 34 14 Peak Tracking Total 9 | . 3 9 4 3 Tactical Retreats 3 | . . 1 2 . Traps | -11 -10 -9 -9 -9 ------- Run | Scr Mat Mat Sto Gar Traps Triggered 6 | . 1 2 . 3 Indirectly . | . . . . . Trap Hack Attempts . | . . . . . Triggered . | . . . . . Disarmed . | . . . . . Reprogrammed . | . . . . . Reused . | . . . . . Traps Extracted . | . . . . . Installed . | . . . . . Triggered . | . . . . . Machines | -11 -10 -9 -9 -9 ---------- Run | Scr Mat Mat Sto Gar Machines Disabled 6 | . . 2 4 . Max in Single Turn 1 | . . 1 1 . Machines Sabotaged . | . . . . . Garrisons Compromised . | . . . . . Overloaded Fab Kills . | . . . . . Fab Network Shutdowns . | . . . . . Hacking | -11 -10 -9 -9 -9 --------- Run | Scr Mat Mat Sto Gar Machines Accessed 13 | . . 2 11 . Terminals 12 | . . 2 10 . Fabricators . | . . . . . Repair Stations . | . . . . . Recycling Units . | . . . . . Scanalyzers . | . . . . . Garrison Access 1 | . . . 1 . Total Hacks 33 | . . 7 26 . Successful 16 | . . 5 11 . Failed 17 | . . 2 15 . Catastrophic 8 | . . . 8 . Database Lockouts . | . . . . . Manual 28 | . . 5 23 . Terminals 32 | . . 7 25 . Fabricators . | . . . . . Repair Stations . | . . . . . Recycling Units . | . . . . . Scanalyzers . | . . . . . Garrison Access 1 | . . . 1 . Terminal Hacks 5 | . . 3 2 . Part Schematic 1 | . . 1 . . Prototype ID Bank 1 | . . 1 . . Open Door 2 | . . . 2 . Branch Access Points 1 | . . 1 . . Fabricator Hacks . | . . . . . Repair Station Hacks . | . . . . . Recycling Unit Hacks . | . . . . . Scanalyzer . | . . . . . Garrison Access Hacks 1 | . . . 1 . Unlock Access 1 | . . . 1 . Unauthorized Hacks 10 | . . 2 8 . Terminals 10 | . . 2 8 . Track 5 | . . 2 3 . Botnet 4 | . . . 4 . Disrupt 1 | . . . 1 . Fabricators . | . . . . . Repair Stations . | . . . . . Recycling Units . | . . . . . Scanalyzers . | . . . . . Garrison Access . | . . . . . Data Cores Recovered 3 | . . . 3 . Used 3 | . . . 3 . Hacking Detections 11 | . . 2 9 . Full Trace Events . | . . . . . Feedback Events . | . . . . . Feedback Blocked . | . . . . . Robot Schematics Acquired . | . . . . . Robots Built . | . . . . . Matter . | . . . . . Time . | . . . . . Total Robot Build Rating . | . . . . . Part Schematics Acquired 1 | . . 1 . . Parts Built . | . . . . . Matter . | . . . . . Time . | . . . . . Total Part Build Rating . | . . . . . Parts Repaired . | . . . . . Time . | . . . . . Parts Recycled . | . . . . . Recycled Matter . | . . . . . Retrieved Matter . | . . . . . Retrieved Components . | . . . . . Parts Scanalyzed . | . . . . . Part Schematics Acquired . | . . . . . Parts Damaged . | . . . . . Bothacking | -11 -10 -9 -9 -9 ------------ Run | Scr Mat Mat Sto Gar Used RIF Installer . | . . . . . Robots Hacked . | . . . . . Non-combat . | . . . . . Combat . | . . . . . Robot Hacks Applied . | . . . . . Relay Couplers Released . | . . . . . Robots Rewired . | . . . . . Allies Hacked . | . . . . . Hacks Repelled . | . . . . . Allies | -11 -10 -9 -9 -9 -------- Run | Scr Mat Mat Sto Gar Total Allies . | . . . . . Largest Group . | . . . . . Highest-Rated Group . | . . . . . Highest-Rated Ally . | . . . . . Total Orders . | . . . . . Ally Attacks . | . . . . . Total Damage . | . . . . . Kills . | . . . . . Allies Corrupted . | . . . . . Allies Melted . | . . . . . Intel | -11 -10 -9 -9 -9 ------- Run | Scr Mat Mat Sto Gar Robot Analysis Total . | . . . . . Derelict Logs Recovered . | . . . . . Drone Launches . | . . . . . Drone Recoveries . | . . . . . Exploration | -11 -10 -9 -9 -9 ------------- Run | Scr Mat Mat Sto Gar Turns Passed 2027 | 75 107 596 1055 194 Spaces Moved 1228 | 60 100 399 605 64 Core 2 | 2 . . . . Treads . | . . . . . Legs . | . . . . . Wheels 1226 | 58 100 399 605 64 Hover . | . . . . . Flight . | . . . . . Fastest Speed 50 | 50 100 90 110 120 Average Speed 110 | 98 100 102 118 120 Slowest Speed 160 | 100 100 110 160 120 Overloaded Moves . | . . . . . Propulsion Burnouts . | . . . . . Robots Hopped . | . . . . . Cave-ins Triggered . | . . . . . Exploration Rate (%) 36 | 4 22 51 86 19 Regions Visited 4 Branch Regions 1 Pre-discovered Areas . | . . . . . Known Exits Taken 2 | . . 1 1 . Unknown Exits Taken 2 | 1 1 . . . Scrap Searched . | . . . . . Spaces Dug 5 | . . 2 3 . Terrain Destroyed 77 | . . 40 30 7 Melee 5 | . . 2 3 . Projectile . | . . . . . AOE 72 | . . 38 27 7 Terrain Rammed . | . . . . . Walls Destroyed . | . . . . . Machines Disabled . | . . . . . Actions | -11 -10 -9 -9 -9 --------- Run | Scr Mat Mat Sto Gar Total 1602 | 69 106 512 788 127 Wait 45 | . . . 43 2 Move 1226 | 59 100 398 605 64 Hop . | . . . . . Pick Up 54 | 2 3 27 21 1 Fast Attach 12 | 6 1 4 1 . Attach 13 | . . 3 6 4 Detach 3 | . . 2 1 . Swap 30 | . 1 19 9 1 Drop 34 | . 1 17 15 1 Fire 156 | 2 . 40 84 30 Melee 5 | . . 2 3 . Ram . | . . . . . Kick . | . . . . . Crush . | . . . . . Escape Stasis 24 | . . . . 24 Rewire . | . . . . . Trap . | . . . . . Miscellaneous . | . . . . . Route ------- -11/Scrapyard -10/Materials (discovered 2 exits: *Mat / [*Min]) -9/Materials (discovered 5 exits: [*Mat] / *Min x2 / *Sto x2) -9/Storage (discovered 2 exits: [*Mat] / Gar) -9/Garrison History --------- Turn | Location | Event 29 | -11/Scrapyard | Discovered new exit (range 15) 76 | -11/Scrapyard | Entered Materials 134 | -10/Materials | Discovered new exit (range 13) 177 | -10/Materials | Discovered new exit (range 7) 183 | -10/Materials | Entered another Materials area 183 | -9/Materials | Evolved 2 slots: Utility x2 254 | -9/Materials | Identified exit to Mines 254 | -9/Materials | Identified exit to Storage 362 | -9/Materials | Lost 3 parts (1p1u1w) 414 | -9/Materials | Build established: Mutant 509 | -9/Materials | Discovered new exit (range 9) 779 | -9/Materials | Entered Storage 806 | -9/Storage | Build established: Hauler-Mutant 1190 | -9/Storage | Core integrity fell below 50% 1234 | -9/Storage | Discovered new exit (range 10) 1834 | -9/Storage | Identified exit to Garrison 1834 | -9/Storage | Entered Garrison 1850 | -9/Garrison | Triggered checkpoint 1950 | -9/Garrison | Triggered checkpoint 1956 | -9/Garrison | Core integrity fell below 20% 1961 | -9/Garrison | Triggered checkpoint 2011 | -9/Garrison | Lost 4 parts (2n2w) 2028 | -9/Garrison | Destroyed by G-47 Trooper with Particle Gun Last Messages --------------- 01961_ Beams of light sweep through the air. An alarm sounds. 01962_ Wheel destroyed. 01964_ Aluminum Leg melted. 01964_ G-34 Mercenary destroyed. 01965_ Overheating: Energy bleed (-60). 01965_ Adv. Beam Cannon destroyed. 01968_ Y-45 Defender destroyed. 01969_ Overheating: Energy bleed (-35). 01970_ System corrupted: Imp. Grenade Launcher failed to launch. 01976_ Y-45 Defender destroyed. 01978_ Adv. Beam Cannon destroyed. 01980_ Wheel destroyed. 01981_ G-34 Mercenary destroyed. 01987_ Acquired 8 matter. 01988_ System corrupted: Adv. Beam Cannon targeting data glitched. 01988_ G-34 Mercenary destroyed. 01988_ System corrupted: Adv. Beam Cannon targeting data glitched. 01995_ The unstable cave ceiling collapses. 02000_ ALERT: Garrison interior compromised. 02026_ Wheel destroyed. Map ----- +----------------------------------------------------+ | ?????????????????????????????????????????????????? | | ?????????????????????????????????????????????????? | | ?????????????????????????????????????????????????? | | ?????????????????????????????????????????????????? | | ?????????????????????????????????????????????????? | | ?????????????????????????????????????????????????? | | ?????????????????????????????????????????????????? | | ????????????? ??????????????????????????????????? | | ????????????#=%??????????????????????????????????? | | ????????????# !??????????????????????????????????? | | ????????????# ??????????????????????????????????? | | ???####""??## ##????????????????????????????????? | | ??? ?? #????????????????????????????????? | | ???? ?? #????????????????????????????????? | | ????? ?? #????????????????????????????????? | | ?? ???# ?# #????????????????????????????????? | | ??? ## ## ###??????????????????????????????? | | ????? #??????????????????????????????? | | ?? ???? #??????????????????????????????? | | ?" ?? #??????????????????????????????? | | ??? ?? ???????????????????????????????? | | ??????# ## !%#????????????????????????????????? | | ?# ## = *############?????????????????????? | | =g #?????????????????????? | | ! g #?????????????????????? | | ## ! % @%#?????????????????????? | | ?## ## ## ######### !%#?????????????????????? | | ??#???# # ???????#%==#?????????????????????? | | ??????####?## ???????# = #?????????????????????? | | ????????????# ???????# #?????????????????????? | | ????????????# #???????# #?????????????????????? | | ????????????# ????????# #?????????????????????? | | ????????????# ????????# ######### ##?????????? | | ????????????# ????????# #?????? | | ????????????# ????????# ?????? | | ????????????###????????#^ ##############????????? | | ???????????????????????#^^ #?????????????????????? | | ???????????????????????# #?????????????????????? | | ???????????????????????# #?????????????????????? | | ???????????????????????# #?????????????????????? | | ???????????????????????# #?????????????????????? | | ???????????????????????# #?????????????????????? | | ?????????????????????### #?????????????????????? | | ?????????????????????#%== #?????????????????????? | | ?????????????????????#=*[= #?????????????????????? | | ?????????????????????#!%% !#?????????????????????? | | ?????????????????????###[ #?????????????????????? | | ???????????????????????# #?????????????????????? | | ???????????????????????# #?????????????????????? | | ???????????????????????# #?????????????????????? | +----------------------------------------------------+ Best States ------------- Heat Dissipation 38 Energy Generation 14 Energy Capacity 280 Matter Stores 300 Matter Capacity 300 Sight Range 16 Terrain Scan Density 10 Armor Coverage 150 Evasion (%) 42 Item Schematics ----------------- Hcp. Storage Unit | -9/Materials | Hacked Robot Schematics ------------------ None Fabricated ------------ Nothing Alien Tech Used ----------------- None Achievements -------------- None Challenges ------------ None Game ------ Seed TargetAerolevReplicator Manual? 0 Play Time 00:21:04 Cumulative 226.5 hours Start 2020.09.25 @ 17:34:09 End 2020.09.25 @ 17:54:26 Sessions 1 Manual Loads 0 Difficulty Rogue Special Mode None Game No. 176 Rogue 176 Adventurer 0 Explorer 0 Win Type - Total 10 Types 5/0/1/1/0/2/1/0/0 Lore% 74 Gallery% 80 Achievement% 73 Wizard Run 0 Options --------- ASCII 0 Keyboard 1 Movement Numpad Keybinds 0 Fullscreen 1 Font 12/Terminus Map View 83x54 Tactical HUD 1 Map Filters NONE Filters LOW_CONTRAST(13,24,33) Steam 1 RUN: 8584e8a7-1e31-48b7-b6b9-96f7b2f875ad